{"text_format":"1","workbook":"xlsx","n_sheets":2,"sheets":["Foglio1","Foglio2"],"not_rendered":{"charts":0,"images":0,"macros":0,"external_links":0,"defined_names":0,"comments":0,"pivot_tables":0},"unopened":[],"bounds":{"document_bytes":16777216,"sheet_cells":100000,"rows_first":2000,"rows_last":500,"rows_between":2000,"halvings":0,"cell_chars":16384,"cell_head_chars":4096},"cells_cut":0,"cells_raw":0,"read":"whole","date_system":"1900"}

{"sheet":"Foglio1","index":0,"n_rows":224,"n_cols":254,"rows_kept":224,"cut":false,"hidden":false,"merged":[[3,1,3,23]]}
[]
[]
[]
["                  CLASSIFICA ASSOLUTA INDIVIDUALE FEMMINILE MASCHILE XXXIII CIRCUITO MASTER OLD STARS 2019","CLASSIFICA ASSOLUTA INDIVIDUALE FEMMINILE MASCHILE XXXV CIRCUITO MASTER  ELAN OLD STARS 2021"]
[]
[]
[]
[]
[null,"FEMMINILE DAME C5 ","Anno","Società","Temù","M.Pora","S.taCat","S.taCat","S.taCat","Comb.","Chiesa","Chiesa","Comb.","Chiesa","Chiesa","Comb.","Tonale","Tonale","Tonale","Tonale","Comb.","Bonus","Totale","Classifica"]
[null,"dal 1950  e precedenti"]
[null,"CROTTI CATERINA",1947,"S.C.Cernobbio",80,null,80,80,80,80,80,80,80,80,80,80,45,100,100,100,100,30,{"$f":"SUM(E11:V11)","v":1355},1,null,null,null,null,null,null,null,null,null,null,null,null,null,null,null,null,null,null,null,null,null,null,null,null,null,null,null,null,null,null,null,null,null,null,null,null,null,null,null,null,null,null,null,null,null,null,null,null,null,null,null,null,null,null,null,null,null,null,null,null,null,null,null,null,null,null,null,null,null,null,null,null,null,null,null,null,null,null,null,null,null,null,null,null,null,null,null,null,null,null,null,null,null,null,null,null,null,null,null,null,null,null,null,null,null,null,null,null,null,null,null,null,null,null,null,null,null,null,null,null,null,null,null,null,null,null,null,null,null,null,null,null,null,null,null,null,null,null,null,null,null,null,null,null,null,null,null,null,null,null,null,null,null,null,null,null,null,null,null,null,null,null,null,null,null,null,null,null,null,null,null,null,null,null,null,null,null,null,null,null,null,null,null,null,null,null,null,null,null,null,null,null,null,null,null,null,null,null,null,null,null,null,null,null,null,null,null,null,null,null,null,null,null,null,null,null,null,null,null,null,null,null,null,null,null,null,null,null,null,{"$f":"SUM(A11:IS11)","v":4658}]
[null,"FABRETTO ANNA",1941,"S.C.Marinelli",100,null,100,100,100,100,100,100,100,100,100,100,null,null,null,null,null,30,1130,2]
[null,"MONTINI SILVIA",1947,"S.C.Cernobbio",50,100,50,50,60,50,60,50,50,60,40,40,80,60,80,80,80,60,1100,3]
[null,"BONZANI MILENA",1949,"S.C.Cernobbio",60,null,60,60,50,60,50,60,60,null,null,null,100,80,60,50,50,30,830,4]
[null,"MAGLIA MARIKA",1947,"S.C.Cernobbio",40,50,40,40,40,40,40,1,1,40,45,45,60,50,50,60,60,60,762,5]
[null,"CONSONNI MARILU'",1948,"S.C.Cernobbio",45,80,45,45,45,45,45,45,45,50,60,60,50,1,1,1,1,60,724,6]
[null,"PEZZOTTA LUCIANA ",1942,"S.C.La Recastello",null,60,null,null,null,null,null,null,null,45,50,50,null,null,null,null,null,null,205,7]
[]
[null,"FEMMINILE DAME C4 ","Anno","Società","Temù","M.Pora","S.taCat","S.taCat","S.taCat","Comb.","Chiesa","Chiesa","Comb.","Chiesa","Chiesa","Comb.","Tonale","Tonale","Tonale","Tonale","Comb.","Bonus","Totale","Classifica"]
[null,"dal 1951 al 1955"]
[null,"CARRARA GRAZIELLA",1950,"S.C.La Recastello",100,100,100,100,100,100,100,100,100,100,100,100,100,100,100,80,80,60,{"$f":"SUM(E21:V21)","v":1720},1]
[null,"GAENI ARTEMIDE",1950,"S.C.La Recastello",60,60,60,60,50,60,80,60,80,80,80,80,60,60,60,60,60,60,{"$f":"SUM(E22:V22)","v":1170},2]
[null,"CASTELLINI IVANA",1951,"S.C.Cernobbio",80,80,80,80,80,80,60,80,60,null,null,null,80,80,80,100,100,30,{"$f":"SUM(E23:V23)","v":1150},3]
[null,"GAMBA JONNE",1950,"S.C.La Recastello",50,50,50,50,60,50,null,null,null,null,null,null,50,50,50,50,50,30,{"$f":"SUM(E24:V24)","v":590},4]
[]
[null,"FEMMINILE DAME C3 ","Anno","Società","Temù","M.Pora","S.taCat","S.taCat","S.taCat","Comb.","Chiesa","Chiesa","Comb.","Chiesa","Chiesa","Comb.","Tonale","Tonale","Tonale","Tonale","Comb.","Bonus","Totale","Classifica"]
[null,"dal 1956 al 1965"]
[null,"DE BATTISTI LORENA",1963,"S.C.Cernobbio",80,80,null,60,50,60,80,60,60,100,100,100,80,80,null,null,null,30,{"$f":"SUM(E28:V28)","v":1020},1]
[null,"MERELLI DELIA",1964,"S.C.La Recastello",40,50,60,100,80,80,100,100,100,null,null,null,50,36,40,50,45,30,961,2]
[null,"MATTARELLI BRUNELLA",1957,"S.C.Ski Mountain",60,60,80,50,60,50,50,50,50,45,45,45,45,50,45,36,36,60,917,3]
[null,"BELOTTI P.ANGELA",1956,"S.C.La Recastello",50,45,45,29,29,29,60,80,80,50,50,50,32,null,36,40,40,30,775,4]
[null,"ZUGNONI DANIELA",1955,"S.C.Cernobbio",null,null,null,null,null,null,40,36,36,80,80,80,60,60,80,100,80,30,762,5]
[null,"FUMAGALLI P.ANGELA",1963,"S.C.La Recastello",100,null,null,null,null,null,null,null,null,null,null,null,100,100,100,80,100,10,590,6]
[null,"MERELLI MARIA LUISA",1958,"S.C.La Recastello",null,1,36,36,32,32,45,45,45,null,null,null,36,40,50,45,50,30,523,7]
[null,"PEZZOTTA SILVANA",1957,"S.C.La Recastello",null,100,100,80,100,100,null,null,null,null,null,null,null,null,null,null,null,10,490,8]
[null,"VOLPATO CLAUDIA",1964,"S.C.La Recastello",null,null,null,null,null,null,null,null,null,60,60,60,40,45,60,60,60,10,455,9]
[null,"COMINELLI LIVIA",1958,"S.C.La Recastello",45,40,32,32,36,36,null,null,null,40,40,40,null,null,null,null,null,10,351,10]
[null,"DONINI DANIELA",1962,"S.C.La Recastello",36,null,40,45,45,45,36,40,40,null,null,null,null,null,null,null,null,10,337,11]
[null,"CORDANI ELENA",1955,"S.C.La Recastello",null,null,50,40,40,40,null,null,null,null,null,null,null,null,null,null,null,null,170,12]
[null,"CAPPELLA ANNA",1955,"S.C.La Recastello",null,32,null,null,null,null,null,null,null,36,36,36,null,null,null,null,null,null,140,13]
[null,"POLLASTRI LAURA",1959,"S.C.La Recastello",null,36,null,null,null,null,null,null,null,null,null,null,null,null,null,null,null,null,36,14]
[]
[null,"FEMMINILE DAME C2 ","Anno","Società","Temù","M.Pora","S.taCat","S.taCat","S.taCat","Comb.","Chiesa","Chiesa","Comb.","Chiesa","Chiesa","Comb.","Tonale","Tonale","Tonale","Tonale","Comb.","Bonus","Totale","Classifica"]
[null,"dal 1966 al 1975"]
[null,"GAMBA ROBERTA",1971,"S.C.Cernobbio",100,null,100,80,100,80,100,100,100,100,100,100,100,100,100,100,100,30,{"$f":"SUM(E45:V45)","v":1590},1]
[null,"PERROTTA CARMEN",1967,"S.C.Cernobbio",null,null,50,50,null,1,50,50,50,80,80,80,80,80,80,80,80,30,{"$f":"SUM(E46:V46)","v":921},2]
[null,"DONINI BRUNA",1965,"S.C.La Recastello",80,null,60,60,60,60,60,60,60,null,null,null,null,null,null,null,null,10,{"$f":"SUM(E47:V47)","v":510},3]
[null,"COLOMBO MELISSA",1967,"S.C.Ski Mountain",null,null,80,100,80,100,null,null,null,null,null,null,null,null,null,null,null,null,{"$f":"SUM(E48:V48)","v":360},4]
[null,"GENESINI GRAZIA",1970,"S.C.Cernobbio",null,null,null,null,null,null,80,80,80,null,null,null,null,null,null,null,null,null,{"$f":"SUM(E49:V49)","v":240},5]
[]
[null,"FEMMINILE DAME C1","Anno","Società","Temù","M.Pora","S.taCat","S.taCat","S.taCat","Comb.","Chiesa","Chiesa","Comb.","Chiesa","Chiesa","Comb.","Tonale","Tonale","Tonale","Tonale","Comb.","Bonus","Totale","Classifica"]
[null,"dal 1976 al 1988"]
[null,"NOSEDA MONICA",1982,"S.C.Cernobbio",null,null,100,100,100,100,null,null,null,100,100,100,null,null,null,null,null,10,{"$f":"SUM(G53:V53)","v":710},1]
[]
[null,"SUPER 85","Anno","Società","Temù","M.Pora","S.taCat","S.taCat","S.taCat","Comb.","Chiesa","Chiesa","Comb.","Chiesa","Chiesa","Comb.","Tonale","Tonale","Tonale","Tonale","Comb.","Bonus","Totale","Classifica"]
[null,"dal 1935 e precedenti"]
[null,"CANTU' ROBERTO",1930,"S.C.Cernobbio",80,null,null,null,100,1,null,null,null,100,100,100,100,1,null,null,null,10,{"$f":"SUM(E57:V57)","v":592},1]
[null,"AMIGONI LUIGI",1934,"S.C.La Recastello",100,100,null,null,null,null,null,null,null,null,null,null,null,null,null,null,null,null,{"$f":"SUM(E58:V58)","v":200},2]
[null,"MORO  MARIO",1934,"S.C.Ski Mountain",1,null,null,null,null,null,null,null,null,null,null,null,null,null,null,null,null,null,{"$f":"SUM(E59:V59)","v":1},3]
[]
[null,"SUPER 80","Anno","Società","Temù","M.Pora","S.taCat","S.taCat","S.taCat","Comb.","Chiesa","Chiesa","Comb.","Chiesa","Chiesa","Comb.","Tonale","Tonale","Tonale","Tonale","Comb.","Bonus","Totale","Classifica"]
[null,"dal 1936 al 1940"]
[null,"VALLE' G.ANTONIO",1939,"S.C.Ski Mountain",100,100,100,100,100,100,80,100,100,80,80,80,100,100,100,100,100,60,{"$f":"SUM(E63:V63)","v":1680},1]
[null,"ORSI ALESSANDRO ",1939,"S.C.La Recastello",80,null,80,80,80,80,100,1,1,100,100,100,80,1,null,null,null,30,913,2]
[null,"TRAINI SANDRO",1938,"S.C.La Recastello",60,80,60,60,60,60,60,80,80,60,60,60,null,null,null,null,null,30,810,3]
[null,"DE BATTISTI G.CARLO",1935,"S.C.Cernobbio",50,60,50,50,50,50,50,60,60,50,1,1,60,80,80,null,1,30,783,4]
[null,"CESATI SANDRO",1936,"S.C.Ski Mountain",45,null,45,45,45,45,45,50,50,null,null,null,null,null,null,null,null,10,380,5]
[null,"CASSINA ENNIO",1937,"S.C.Cernobbio",null,null,null,null,null,null,40,1,1,null,null,null,null,null,null,null,null,null,42,6]
[null,"GIPPONI CARLO",1936,"S.C.La Recastello",1,null,null,null,null,null,null,null,null,null,null,null,null,null,null,null,null,null,1,7]
[]
[null,"SUPER 75","Anno","Società","Temù","M.Pora","S.taCat","S.taCat","S.taCat","Comb.","Chiesa","Chiesa","Comb.","Chiesa","Chiesa","Comb.","Tonale","Tonale","Tonale","Tonale","Comb.","Bonus","Totale","Classifica"]
[null,"dal 1941 al 1945"]
[null,"FERRI GIUSEPPE",1944,"S.C.La Recastello",null,null,100,100,100,100,80,80,80,80,100,100,100,100,100,100,100,30,{"$f":"SUM(E73:V73)","v":1450},1]
[null,"PELIZZARI GIANGIACOMO",1943,"S.C.Cernobbio",60,100,50,80,80,80,50,60,60,60,60,60,80,60,60,80,80,60,1220,2]
[null,"ARIZZI CARLO",1943,"S.C.Ski Mountain",50,60,80,50,50,50,60,50,50,45,80,80,60,80,80,60,60,60,1105,3]
[null,"GATTI FRANCO",1943,"S.C.Ski Mountain",1,50,60,60,60,60,45,45,45,null,null,null,null,null,50,50,50,30,606,4]
[null,"SPLUGA ENZO",1942,"S.C.La Recastello",45,45,45,40,45,45,36,36,36,40,50,50,null,null,null,null,null,30,543,5]
[null,"BAVO NATALINO",1943,"S.C.Cernobbio",100,null,null,null,null,null,100,100,100,100,null,1,null,null,null,null,null,10,511,6]
[null,"PIRAS ORIO",1941,"S.C.Cernobbio",null,null,null,45,40,40,40,40,40,50,1,1,null,null,null,null,null,10,307,7]
[null,"MASCHERONI G.FRANCO",1940,"S.C.Cernobbio",null,null,null,null,null,null,32,32,32,null,null,null,null,null,null,null,null,null,96,8]
[null,"BATTISTINI FELICE",1941,"S.C.Ski Mountain",null,80,null,null,null,null,null,null,null,null,null,null,null,null,null,null,null,null,80,9]
[null,"CATTANEO ACHILLE",1943,"S.C.La Recastello",80,null,null,null,null,null,null,null,null,null,null,null,null,null,null,null,null,null,80,9]
[null,"GILARDONI FRANCESCO",1943,"S.C.Cernobbio"]
[]
[null,"SUPER 70","Anno","Società","Temù","M.Pora","S.taCat","S.taCat","S.taCat","Comb.","Chiesa","Chiesa","Comb.","Chiesa","Chiesa","Comb.","Tonale","Tonale","Tonale","Tonale","Comb.","Bonus","Totale","Classifica"]
[null,"dal 1946 al 1950"]
[null,"FERRI CARLO",1949,"S.C.Cernobbio",100,100,100,60,80,60,60,80,80,60,80,80,60,80,80,100,80,60,{"$f":"SUM(E87:V87)","v":1400},1]
[null,"BERERA LINO",1949,"S.C.La Recastello",50,60,50,45,45,45,80,45,60,45,45,45,80,60,100,80,100,60,1095,2]
[null,"GARBELLINI LINO",1947,"S.C.Cernobbio",1,80,60,50,50,50,50,50,50,50,50,50,100,100,60,60,60,60,1031,3]
[null,"BAVO GIUSEPPE",1946,"S.C.Cernobbio",80,null,null,100,100,100,100,100,100,100,100,100,null,null,null,null,null,10,990,4]
[null,"FUMASONI ROBERTO",1946,"S.C.Cernobbio",60,null,80,80,60,80,45,60,45,80,60,60,null,null,null,null,null,30,740,5]
[null,"NOVELLI NANDO",1947,"S.C.La Recastello",40,50,36,29,26,26,36,36,36,40,40,40,45,50,45,45,45,60,725,6]
[null,"FERRARI DARIO",1947,"S.C.La Recastello",18,20,22,20,20,20,29,29,32,26,22,24,36,36,40,40,40,60,534,7]
[null,"LOCATELLI EFREM",1948,"G.S.A. Marinelli ",26,24,32,36,36,36,40,40,40,32,36,32,null,null,null,null,null,30,440,8]
[null,"GHILARDI ANGELO",1947,"G.S.A.Marinelli",20,22,26,24,24,24,24,24,24,24,26,26,null,null,null,null,null,30,318,9]
[null,"BUZZETTI ALFREDO",1949,"S.C.Cernobbio",null,26,null,null,null,null,32,1,1,1,29,1,1,45,50,50,50,30,317,10]
[null,"BORIERO GIANNI",1946,"S.C.Cernobbio",14,null,24,22,22,22,22,26,26,22,18,22,32,1,null,null,null,30,303,11]
[null,"RUFFINONI ALDO",1945,"S.C.La Recastello",null,36,40,32,32,32,null,null,null,36,32,36,null,null,null,null,null,10,286,12]
[null,"DOTTI SERGIO",1946,"S.C.Cernobbio",11,18,16,16,16,16,20,1,1,16,1,1,29,32,36,null,1,30,261,13]
[null,"AGAZZI LUCIO",1947,"G.S.A.Marinelli",29,29,29,26,29,29,null,null,null,null,null,null,null,null,null,null,null,10,181,14]
[null,"BOMBARDIERI ENZO",1945,"S.C.Cernobbio",null,null,null,null,null,null,26,32,29,29,24,29,null,null,null,null,null,10,179,15]
[null,"GALBUSERA DIEGO",1945,"S.C.Cernobbio",null,null,45,40,40,40,null,null,null,null,null,null,null,null,null,null,null,null,165,16]
[null,"CASSINA EZIO",1947,"S.C.Cernobbio",12,null,20,null,null,null,null,null,null,null,null,null,40,40,null,null,null,10,122,17]
[null,"SACCHI GINO",1947,"S.C.Cernobbio",null,null,null,null,null,null,18,20,22,18,16,18,null,null,null,null,null,10,122,18]
[null,"TESTA CLAUDIO",1949,"S.C.La Recastello",16,null,18,18,18,18,null,null,null,null,null,null,null,null,null,null,null,10,98,19]
[null,"FRACCHIA MAURIZIO",1948,"S.C.Cernobbio",null,null,null,null,null,null,1,22,1,20,20,20,null,null,null,null,null,10,94,20]
[null,"GRASSI GIOVANNI",1949,"S.C.La Recastello",32,45,null,null,null,null,null,null,null,null,null,null,null,null,null,null,null,null,77,21]
[null,"IMBERTI G.BATTISTA",1949,"S.C.La Recastello",36,40,null,null,null,null,null,null,null,null,null,null,null,null,null,null,null,null,76,22]
[null,"MELZI CARLO",1945,"S.C.La Recastello",24,null,null,null,null,null,null,null,null,null,null,null,50,1,null,null,null,null,75,23]
[null,"FIENGO PIETRO",1946,"S.C.La Recastello",22,32,null,null,null,null,null,null,null,null,null,null,1,null,null,null,null,null,55,24]
[null,"GUSMINI RENATO",1947,"S.C.La Recastello",45,1,null,null,null,null,null,null,null,null,null,null,null,null,null,null,null,null,46,25]
[null,"MODESTI ATTILIO",1946,"S.C.Ski Mountain",15,null,null,null,null,null,null,null,null,null,null,null,null,null,null,null,null,null,15,26]
[null,"MONTI PRIMO",1947,"S.C.Cernobbio",13,null,null,null,null,null,null,null,null,null,null,null,null,null,null,null,null,null,13,27]
[null,"MORETTI MARCO",1949,"S.C.Ski Mountain",null,1,null,null,null,null,null,null,null,null,null,null,null,null,null,null,null,null,1,28]
[]
[null,"SUPER  65","Anno","Società","Temù","M.Pora","S.taCat","S.taCat","S.taCat","Comb.","Chiesa","Chiesa","Comb.","Chiesa","Chiesa","Comb.","Tonale","Tonale","Tonale","Tonale","Comb.","Bonus","Totale","Classifica"]
[null,"sdal 1951 al 1955"]
[null,"BERGAMELLI G.PIETRO",1954,"S.C.Ski Mountain",80,100,80,100,80,80,80,60,60,100,80,100,60,80,100,100,100,60,{"$f":"SUM(E118:V118)","v":1500},1]
[null,"CURTONI GIORGIO",1951,"S.C.Cernobbio",100,80,100,80,100,100,100,80,100,1,100,1,100,100,60,80,80,60,1422,2]
[null,"ZUGNONI LIVIO",1951,"S.C.Cernobbio",60,60,60,60,60,60,60,100,80,80,50,80,80,60,80,60,60,60,1210,3]
[null,"CORBELLA PIERO",1954,"S.C.La Recastello",40,45,null,null,null,null,50,50,50,60,45,50,50,50,50,50,50,30,670,4]
[null,"ZERBONI FAUSTO",1953,"S.C.Cernobbio",36,null,45,45,45,45,36,36,36,50,60,60,40,40,null,null,null,30,604,5]
[null,"MAGNI GIGI",1950,"S.C.La Recastello",29,24,24,36,29,32,24,26,24,29,24,26,29,29,36,40,36,60,557,6]
[null,"ROSSI MARCELLO",1951,"S.C.Ski Mountain",45,36,40,40,40,40,45,45,45,45,36,45,null,null,null,null,null,30,532,7]
[null,"MARTINI SERGIO",1950,"S.C.Cernobbio",18,22,22,20,22,20,18,22,20,20,20,20,24,24,40,36,40,60,468,8]
[null,"MODANESI ROMEO",1951,"S.C.Ski Mountain",null,14,null,null,null,null,26,24,26,32,29,32,32,36,45,45,45,30,416,9]
[null,"GOTTI GIORDANO",1953,"S.C.Cernobbio",20,null,32,26,24,24,32,32,32,26,26,29,22,26,null,null,null,30,381,10]
[null,"BARONCHELLI G.MARIA",1952,"S.C.La Recastello",32,32,26,24,26,26,null,null,null,36,32,36,36,32,null,null,null,30,368,11]
[null,"ALVARETA RENZO",1954,"S.C.Cernobbio",26,null,null,null,null,null,40,40,40,40,40,40,null,null,null,null,null,10,276,12]
[null,"GIUDES SILVANO",1951,"S.C.Cernobbio",24,null,null,22,20,22,29,29,29,22,18,22,null,null,null,null,null,10,247,13]
[null,"GIUDICI GINO",1952,"S.C.Cernobbio",22,null,29,32,36,36,null,null,null,24,22,24,null,null,null,null,null,10,235,14]
[null,"CARRARA G.BATTISTA",1950,"G.S.A. Marinelli ",null,15,20,18,18,18,16,16,16,15,14,15,null,null,null,null,null,30,211,15]
[null,"LOCATELLI VALERIO",1952,"S.C.Cernobbio",null,null,50,50,50,50,null,null,null,null,null,null,null,null,null,null,null,null,200,16]
[null,"BIELLA GIUSEPPE",1950,"S.C.Ski Mountain",15,13,18,16,16,16,14,1,1,16,16,16,null,null,null,null,null,30,188,17]
[null,"AMBROSIONI G.BATTISTA",1952,"S.C.Ski Mountain",null,29,null,null,null,null,22,15,18,null,null,null,45,45,null,null,null,10,184,18]
[null,"MANZOTTI MARCO",1952,"S.C.Ski Mountain",1,16,null,null,null,null,20,20,22,18,15,18,null,null,null,null,null,10,140,19]
[null,"CAVAGNA GIOVANNI",1953,"S.C.La Recastello",null,null,36,29,32,29,null,null,null,null,null,null,null,null,null,null,null,null,126,20]
[null,"ZUGNONI MARCO",1953,"S.C.Cernobbio",50,50,null,null,null,null,null,null,null,null,null,null,null,null,null,null,null,null,100,21]
[null,"DI MATTEO GIOVANNINO",1952,"S.C.La Recastello",null,20,null,null,null,null,null,null,null,null,null,null,26,22,null,null,null,null,68,22]
[null,"ZUCCA OLINDO",1952,"S.C.La Recastello",null,null,null,null,null,null,15,18,15,null,null,null,null,null,null,null,null,null,48,23]
[null,"CRESPI MASSIMO",1950,"S.C.La Recastello",null,40,null,null,null,null,null,null,null,null,null,null,null,null,null,null,null,null,40,24]
[null,"PEROSINO RENATO",1954,"S.C.La Recastello",16,18,null,null,null,null,null,null,null,null,null,null,null,null,null,null,null,null,34,25]
[null,"MORESCHI GIOVANNI",1951,"S.C.La Recastello",1,26,null,null,null,null,null,null,null,null,null,null,null,null,null,null,null,null,27,26]
[]
[null,"Super 60","Anno","Societa'","Temù","M.Pora","S.taCat","S.taCat","S.taCat","Comb.","Chiesa","Chiesa","Comb.","Chiesa","Chiesa","Comb.","Tonale","Tonale","Tonale","Tonale","Comb.","Bonus","Totale","Classifica"]
[null,"dal 1956 al 1960"]
[null,"CARRARA ADRIANO",1957,"S.C.La Recastello",60,80,60,60,60,60,40,50,45,60,80,60,1,60,100,60,80,60,{"$f":"SUM(E147:V147)","v":1076},1]
[null,"SABBADINI MARIO",1955,"S.C.La Recastello",80,36,50,50,40,45,50,36,50,50,50,50,60,80,80,100,100,60,1067,2]
[null,"ZUCCHELLI MARCO",1959,"S.C.La Recastello",40,60,45,40,45,40,45,60,60,45,45,45,80,50,50,50,50,60,910,3]
[null,"GANDOSSI DANILO",1956,"S.C.La Recastello",36,50,36,36,36,36,29,45,36,36,40,36,40,40,60,80,60,60,792,4]
[null,"GALAS MARIANO",1959,"S.C.Cernobbio",100,100,100,100,100,100,100,1,1,null,null,null,null,null,null,null,null,10,712,5]
[null,"VAINI GUIDO",1958,"S.C.Ski Mountain",50,45,32,29,26,29,24,29,29,32,32,32,36,36,40,32,32,60,625,6]
[null,"DONATI ADRIANO",1958,"S.C.Ski Mountain",null,null,null,null,null,null,80,80,100,100,100,100,null,null,null,null,null,10,570,7]
[null,"MAXENTI VINCENZO",1957,"S.C.Cernobbio",22,24,16,20,20,20,15,18,18,22,24,24,32,29,36,36,36,60,472,8]
[null,"LOMBARDI CARMINE",1955,"S.C.La Recastello",24,null,20,22,22,22,18,20,22,24,26,26,29,26,32,40,40,30,443,9]
[null,"BORDAZZI SERGIO",1958,"S.C.La Recastello",32,29,null,null,null,null,20,24,24,null,null,null,45,32,45,45,45,30,371,10]
[null,"ORIO SERGIO",1958,"S.C.Ski Mountain",null,null,80,80,80,80,null,null,null,null,null,null,null,null,null,null,null,null,320,11]
[null,"SALVADORI FEDERINO",1955,"S.C.Cernobbio",26,32,22,26,29,26,22,1,1,26,29,29,1,null,null,null,null,30,300,12]
[null,"SERMISONI GIUSEPPE",1959,"S.C.Ski Mountain",null,null,null,null,null,null,60,100,80,null,null,null,null,null,null,null,null,null,240,13]
[null,"BARTESAGHI CARLO",1959,"S.C.Cernobbio",null,null,null,null,null,null,36,32,40,40,36,40,null,null,null,null,null,10,234,14]
[null,"RIVOLTA ANTONIO",1956,"S.C.Cernobbio",null,null,null,null,null,null,null,null,null,80,60,80,null,null,null,null,null,null,220,15]
[null,"MIGLIORATI SERGIO",1959,"S.C.La Recastello",null,null,null,null,null,null,null,null,null,null,null,null,100,100,null,null,null,null,200,16]
[null,"GALBUSERA GUIDO",1958,"S.C.Cernobbio",45,null,null,null,null,null,32,40,32,29,null,1,null,null,null,null,null,10,189,17]
[null,"COMPAGNONI CANDIDO",1955,"S.C.Cernobbio",null,null,40,45,50,50,null,null,null,null,null,null,null,null,null,null,null,null,185,18]
[null,"BANFI LUCA",1959,"S.C.Ski Mountain",null,null,29,32,32,32,null,null,null,null,null,null,null,null,null,null,null,null,125,19]
[null,"BALZI IVANO",1958,"S.C.La Recastello",29,null,null,null,null,null,null,null,null,null,null,null,50,45,null,null,null,null,124,20]
[null,"TAGLIAFERRO MAURIZIO",1959,"S.C.Cernobbio",null,null,null,null,null,null,26,26,26,null,null,null,null,null,null,null,null,null,78,21]
[null,"CASANOVA GIUSEPPE",1955,"S.C.La Recastello",null,null,null,null,null,null,null,null,null,20,22,22,null,null,null,null,null,null,64,22]
[null,"ARRIGONI RUGGERO",1956,"S.C.La Recastello",null,null,null,null,null,null,16,22,20,null,null,null,null,null,null,null,null,null,58,23]
[null,"GIORDANO MICHELE",1955,"S.C.Cernobbio",null,26,18,null,null,null,null,null,null,null,null,null,null,null,null,null,null,null,44,24]
[null,"TENCI FERMO",1956,"S.C.Cernobbio",null,40,null,null,null,null,null,null,null,null,null,null,null,null,null,null,null,null,40,25]
[null,"COMPAGNONI FLAVIO",1958,"S.C.Cernobbio",null,null,26,null,null,null,null,null,null,null,null,null,null,null,null,null,null,null,26,26]
[]
[null,"Super 55","Anno","Società","Temù","M.Pora","S.taCat","S.taCat","S.taCat","Comb.","Chiesa","Chiesa","Comb.","Chiesa","Chiesa","Comb.","Tonale","Tonale","Tonale","Tonale","Comb.","Bonus","Totale","Classifica"]
[null,"dal 1961 al 1965"]
[null,"SALVADORI MARCO",1963,"S.C.Cernobbio",80,100,80,80,45,80,80,50,60,100,100,100,1,100,80,100,80,60,{"$f":"SUM(E176:V176)","v":1376},1]
[null,"POMONI FAUSTO",1961,"S.C.Cernobbio",60,null,60,60,100,100,60,60,50,60,60,60,100,80,100,80,100,30,1220,2]
[null,"TOMBINI P.ANGELO",1960,"S.C.Ski Mountain",1,60,50,50,60,50,45,45,45,50,50,50,60,50,60,50,60,60,896,3]
[null,"CATTANEO FABRIZIO",1960,"S.C.La Recastello",null,null,45,45,80,60,40,40,40,40,45,40,80,60,1,60,1,30,707,4]
[null,"CANCLINI DAVIDE",1963,"S.C.Cernobbio",50,29,36,36,40,40,36,36,36,null,null,null,40,1,50,45,50,30,555,5]
[null,"ASTI MASSIMO",1962,"S.C.Ski Mountain",null,null,null,null,null,null,100,100,100,80,80,80,null,null,null,null,null,10,550,6]
[null,"PINI FRANCESCO",1961,"S.C.Ski Mountain",40,26,29,29,36,36,29,29,29,36,32,36,null,null,null,null,null,30,417,7]
[null,"FAZZINI AMOS",1960,"S.C.Cernobbio",100,null,null,null,null,null,50,80,80,null,null,null,null,null,null,null,null,null,310,8]
[null,"CARMINI STEFANO",1961,"S.C.Ski Mountain",1,50,null,32,50,45,null,null,null,null,null,null,45,40,null,null,null,10,273,9]
[null,"COLOMBO STEFANO",1961,"S.C.Ski Mountain",36,24,32,null,null,null,32,32,32,1,36,1,1,null,null,null,null,30,257,10]
[null,"COMPAGNONI FIORENZO",1963,"S.C.Cernobbio",null,null,100,100,1,1,null,null,null,null,null,null,null,null,null,null,null,null,202,11]
[null,"ACQUISTAPACE ALDO",1961,"S.C.Cernobbio",null,null,null,null,null,null,26,26,26,32,29,32,null,null,null,null,null,10,181,12]
[null,"MARTINO PIETRO",1960,"S.C.Cernobbio",null,45,null,null,null,null,null,null,null,45,40,45,null,null,null,null,null,null,175,13]
[null,"PEZZOLI GIACOMO",1961,"S.C.La Recastello",null,32,null,null,null,null,null,null,null,null,null,null,50,45,null,null,null,null,127,14]
[null,"ROCCA MASSIMO",1964,"S.C.Cernobbio",45,null,null,null,null,null,null,null,null,null,null,null,36,36,null,null,null,null,117,15]
[null,"POROTTO MARCO",1962,"S.C.Cernobbio",null,null,40,40,1,1,null,null,null,null,null,null,null,null,null,null,null,null,82,16]
[null,"MANGINI BATTISTA",1961,"S.C.La Recastello",null,80,null,null,null,null,null,null,null,null,null,null,null,null,null,null,null,null,80,17]
[null,"MANGINI G.PIETRO",1964,"S.C.La Recastello",null,40,null,null,null,null,null,null,null,null,null,null,null,null,null,null,null,null,40,18]
[null,"PEZZOLI FABIO",1960,"S.C.La Recastello",null,36,null,null,null,null,null,null,null,null,null,null,1,1,null,null,null,null,38,19]
[]
[null,"Super 50","Anno","Società","Temù","M.Pora","S.taCat","S.taCat","S.taCat","Comb.","Chiesa","Chiesa","Comb.","Chiesa","Chiesa","Comb.","Tonale","Tonale","Tonale","Tonale","Comb.","Bonus","Totale","Classifica"]
[null,"dal 1966 al 1971"]
[null,"COLOMBO STEFANO",1966,"S.C.Ski Mountain",100,100,null,100,100,100,80,80,80,100,80,100,100,100,null,null,null,30,{"$f":"SUM(E198:V198)","v":1250},1]
[null,"STEFANO GIANNI",1970,"S.C.Ski Mountain",null,50,null,null,null,null,50,50,50,60,50,60,80,80,null,null,null,10,540,2]
[null,"MULAZZI GIANNI",1966,"S.C.Ski Mountain",null,80,null,null,null,null,60,60,60,1,100,1,null,null,null,null,null,10,372,3]
[null,"MENOTTI ALBERTO",1967,"S.C.Ski Mountain",null,null,null,null,null,null,100,100,100,null,null,null,null,null,null,null,null,null,300,4]
[null,"CANTONI DAVIDE",1967,"S.C.Cernobbio",null,null,null,80,80,80,null,null,null,null,null,null,null,null,null,null,null,null,240,5]
[null,"CIAPPONI WALER",1969,"S.C.Cernobbio",null,null,null,null,null,null,null,null,null,80,60,80,null,null,null,null,null,null,220,6]
[null,"MOLTENI MASSIMILIANO",1966,"S.C.Cernobbio",60,40,null,null,null,null,null,null,null,null,null,null,null,null,null,null,null,null,100,7]
[null,"PLONA MARCO",1966,"S.C.Cernobbio",80,null,null,null,null,null,null,null,null,null,null,null,null,null,null,null,null,null,80,8]
[null,"SIBOLDI GIULIO",1970,"S.C.La Recastello",null,60,null,null,null,null,null,null,null,null,null,null,null,null,null,null,null,null,60,9]
[null,"FUGAZZA ENNIO",1966,"S.C.La Recastello",null,45,null,null,null,null,null,null,null,null,null,null,null,null,null,null,null,null,45,10]
[]
[null,"Super 40","Anno","Società","Temù","M.Pora","S.taCat","S.taCat","S.taCat","Comb.","Chiesa","Chiesa","Comb.","Chiesa","Chiesa","Comb.","Tonale","Tonale","Tonale","Tonale","Comb.","Bonus","Totale","Classifica"]
[null,"dal 1972 al 1981"]
[null,"FRACCHIA ENRICO",1974,"S.C.Cernobbio",null,null,null,null,null,null,null,null,null,100,100,100,null,null,null,null,null,null,{"$f":"SUM(E211:V211)","v":300},1]
[null,"SALA SIMONE",1977,"S.C.Ski Mountain",null,null,null,null,null,null,100,100,100,null,null,null,null,null,null,null,null,null,{"$f":"SUM(E212:V212)","v":300},1]
[null,"DEI CAS G,.LUCA",1974,"S.C.Cernobbio",null,null,null,null,null,null,null,null,null,80,80,80,null,null,null,null,null,null,{"$f":"SUM(E213:V213)","v":240},3]
[null,"ZANETTI ROSSANO",1972,"S.C.Ski Mountain",null,null,null,null,null,null,null,null,null,null,null,null,100,100,null,null,null,null,{"$f":"SUM(E214:V214)","v":200},4]
[null,"BARZON DAVIDE",1999,"S.C.Cernobbio",100,null,null,null,null,null,null,null,null,null,null,null,null,null,null,null,null,null,{"$f":"SUM(E215:V215)","v":100},5]
[]
[null,"Super 30","Anno","Società","Temù","M.Pora","S.taCat","S.taCat","S.taCat","Comb.","Chiesa","Chiesa","Comb.","Chiesa","Chiesa","Comb.","Tonale","Tonale","Tonale","Tonale","Comb.","Bonus","Totale","Classifica"]
[null,"dal 1982 al 1991"]
[]
[]
[null,"Super 20","Anno","Società","Temù","M.Pora","S.taCat","S.taCat","S.taCat","Comb.","Chiesa","Chiesa","Comb.","Chiesa","Chiesa","Comb.","Tonale","Tonale","Tonale","Tonale","Comb.","Bonus","Totale","Classifica"]
[null,"dal 1992 al 2001"]
[null,"MANGINI MARCO",1996,"S.C.La Recastello",null,100,null,null,null,null,null,null,null,null,null,null,null,null,null,null,null,null,100,1]
[null,"RECH CRISTIAN",1999,"S.C.Aprica",100,null,null,null,null,null,null,null,null,null,null,null,null,null,null,null,null,null,100,1]

{"sheet":"Foglio2","index":1,"n_rows":0,"n_cols":0,"rows_kept":0,"cut":false,"hidden":false,"merged":[]}